Cogmind - Beta 15 @@@ ROGUE MODE // 2025.07.14 @ 13:15:47 Player: Seven ate you Result: Self-destructed Performance ------------- Evolutions (1) 500 Regions Visited (2) 400 Robots Destroyed (34) 170 Value Destroyed (757) 757 Prototype IDs (0) 0 Alien Tech Used (0) 0 Bonus (0) 0 TOTAL SCORE: 1827 Bonus ------- None Cogmind --------- Core Integrity 309/400 Matter 241/300 Energy 100/100 System Corruption 5% Temperature Cool (0) Movement Treading (170) Location -9/Materials Parts ------- > --- POWER (1) -------- (None) > --- PROPULSION (2) --- Armored Treads Armored Treads > --- UTILITY (4) ------ Small Storage Unit Light Armor Plating > --- WEAPON (2) ------- Beam Cannon Beam Cannon > --- INVENTORY (8) ---- Armored Treads Armored Treads Sensor Array Signal Interpreter Improved Terrain Scanner Seismic Detector Hacking Suite Grenade Launcher Peak State ------------ > --- POWER ------------ Improved Ion Engine > --- PROPULSION ------- Armored Treads Armored Treads > --- UTILITY ---------- Small Storage Unit Targeting Computer > --- WEAPON ----------- Beam Cannon Beam Cannon > --- INVENTORY -------- Light Ion Engine Armored Treads Armored Treads Sensor Array Signal Interpreter Improved Terrain Scanner Seismic Detector Hacking Suite [Rating: 13] Favorites ----------- Power Light Ion Engine Engine Light Ion Engine Propulsion Aluminum Leg Treads Light Treads Leg Aluminum Leg Utility Small Storage Unit Device Improved Terrain Scanner Storage Small Storage Unit Processor Targeting Computer Protection Light Armor Plating Weapon Beam Cannon Energy Gun Medium Laser Energy Cannon Beam Cannon Ballistic Gun Assault Rifle Launcher Grenade Launcher Build | -11 -10 -9 ------- Run | Yrd Mat Mat Slots Evolved 2 | . . 2 Power . | . . . Propulsion . | . . . Utility 2 | . . 2 Weapon . | . . . Parts Attached 29 | 11 13 5 Power 4 | 1 2 1 Engine 4 | 1 2 1 Core . | . . . Reactor . | . . . Propulsion 10 | 4 4 2 Treads 6 | 2 2 2 Leg 4 | 2 2 . Wheel . | . . . Hover . | . . . Flight . | . . . Utility 6 | 3 2 1 Device 3 | 2 1 . Storage 1 | 1 . . Processor 1 | . 1 . Hackware . | . . . Protection 1 | . . 1 Artifact . | . . . Weapon 9 | 3 5 1 Energy Gun 2 | 2 . . Energy Cannon 2 | . 2 . Ballistic Gun 4 | 1 3 . Ballistic Cannon . | . . . Launcher 1 | . . 1 Special Weapon . | . . . Impact Weapon . | . . . Slashing Weapon . | . . . Piercing Weapon . | . . . Special Melee Weapon . | . . . Unidentified Prototypes . | . . . Parts Lost 6 | . 4 2 Power 3 | . 2 1 Propulsion 2 | . 2 . Utility 1 | . . 1 Weapon . | . . . Highest Loss Streak 2 | . 2 2 To Critical Strikes . | . . . Average Backups 7 | 2 7 7 Power . | 1 . . Propulsion 1 | . . 1 Utility 4 | . 4 5 Weapon 1 | 1 1 . Tool/Special . | . . . Unused Backups 8 | . 2 6 Power 1 | . 1 . Propulsion 4 | . . 4 Utility 2 | . . 2 Weapon 1 | . 1 . Tool/Special . | . . . Average Slot Usage (%) 88 | . 94 69 Engine 11 | . 13 6 Treads 13 | . 10 21 Leg 10 | . 14 . Storage 13 | . 14 11 Processor 10 | . 12 6 Energy Gun 1 | . 2 . Energy Cannon 9 | . 4 21 Ballistic Gun 15 | . 20 . Peak Build Rating 13 | 9 9 13 Average Rating 8 | 5 7 10 On Entrance 5 | . 7 8 Naked Turns . | . . . Heaviest Build 18 | 13 14 18 Greatest Support 40 | 40 40 40 Greatest Overweight (x) 4 | . 3 4 Average Overweight (x) . | . . . Largest Inventory Capacity 8 | 8 8 8 Average Capacity 7 | 7 8 8 Most Carried 8 | 5 8 8 Average Carried 7 | 2 7 7 Final Capacity 8 | 8 8 8 Final Carried 8 | 4 8 8 Class Distribution -------------------- 100% | Mutant Dominant Class ---------------- Mutant | -10/Materials Mutant | -9/Materials Resources | -11 -10 -9 ----------- Run | Yrd Mat Mat Matter Collected 892 | 290 424 178 Remotely . | . . . Salvage Created 1058 | 51 489 518 Parts 76 | 7 39 30 Haulers Intercepted . | . . . Recyclers Shooed 2 | . 1 1 Parts Field Recycled . | . . . Retrieved Matter . | . . . Parts Self-Destructed . | . . . Prevented . | . . . Kills | -11 -10 -9 ------- Run | Yrd Mat Mat Combat Hostiles Destroyed 25 | . 14 11 Guns 14 | . 14 . Cannons 8 | . . 8 AOE 3 | . . 3 Classes Destroyed 9 | 1 5 3 Builder 1 | . 1 . Tunneler 3 | 3 . . Recycler 2 | . . 2 Operator 2 | . 2 . Watcher 1 | . 1 . Swarmer 10 | . 6 4 Grunt 11 | . 8 3 Brawler 1 | . . 1 Sentry 3 | . . 3 Best Kill Streak 5 | 3 5 4 Combat Bots Only 5 | . 5 4 Max Kills in Single Turn 2 | 1 1 2 Gunslinging . | . . . Exploded 2 | . . 2 Melee . | . . . Uniques/NPCs Destroyed . | . . . Combat | -11 -10 -9 -------- Run | Yrd Mat Mat Hostile Shots Fired 162 | . 107 55 Missed 38 | . 28 10 Hits 124 | . 79 45 Melee 3 | . . 3 Projectile 121 | . 79 42 Critical Strikes 2 | . 1 1 Damage Taken 1407 | . 784 623 Core 270 | . 179 91 Absorbed by Shields . | . . . Core Remaining (%) 64 | 100 28 . Volleys Fired 96 | 4 60 32 Largest 2 | 2 2 2 Hottest 120 | 100 120 120 Shots Fired 188 | 8 120 60 Gun 126 | 8 118 . Cannon 59 | . 2 57 Launcher 3 | . . 3 Special . | . . . Kinetic 90 | . 90 . Thermal 95 | 8 30 57 Explosive 3 | . . 3 Electromagnetic . | . . . Robot Hit Streak 17 | 3 17 9 Robot Miss Streak 5 | 1 5 5 Penetration Max . | . . . Secondary Targets 7 | . 7 . Max Gunslinging Chain 1 | . 1 . Shots Hit Robots 116 | 6 77 33 Core Hits 52 | 3 33 16 Critical Kills . | . . . Critical Parts Destroyed 1 | . 1 . Critical Strikes 5 | 1 4 . Burn 4 | 1 3 . Destroy 1 | . 1 . Melee Attacks . | . . . Impact . | . . . Slashing . | . . . Piercing . | . . . Sneak Attacks . | . . . Combat Hostiles . | . . . Follow-up Attacks . | . . . Damage Inflicted 1696 | 76 885 735 Guns 944 | 76 868 . Cannons 633 | . 17 616 Explosions 119 | . . 119 Melee . | . . . Ramming . | . . . Kinetic 641 | . 641 . Thermal 936 | 76 244 616 Explosive 119 | . . 119 Electromagnetic . | . . . Impact . | . . . Slashing . | . . . Piercing . | . . . Highest Corruption 5 | . 2 5 Average Corruption 2 | . 2 4 Corruption Purged . | . . . Corruption Blocked . | . . . Effects 12 | . 7 5 Matter Fused 4 | . 1 3 Heat Flow Errors 2 | . 2 . Energy Discharges 2 | . 1 1 Data Loss (minor) 2 | . 2 . Data Loss (major) 1 | . 1 . Weapon Failures 1 | . . 1 Overload Shots . | . . . Overflow Damage 7 | . 7 . Projectiles 7 | . 7 . Explosions . | . . . Melee . | . . . Knockbacks . | . . . Impact . | . . . Kinetic . | . . . Secondary . | . . . Self-Inflicted Damage 45 | . . 45 Shots 1 | . . 1 Rammed . | . . . Targets Rammed 1 | . . 1 Kicked . | . . . Crushed 1 | . . 1 Highest Temperature 450 | 78 268 450 Average Temperature 125 | 30 95 164 Received Heat Transfer 483 | . 327 156 Effects 4 | . . 4 Energy Bleed 2 | . . 2 Matter Decay 2 | . . 2 Siege Activations . | . . . Martial Activations . | . . . Shielding Activations . | . . . Robots Disrupted . | . . . Combat Hostiles . | . . . Robots Corrupted . | . . . Combat Hostiles . | . . . Parts Fried . | . . . Impact Corruptions . | . . . Robots Melted . | . . . Combat Hostiles . | . . . Parts Melted 3 | 2 1 . Heat Transferred 2516 | 296 925 1295 Parts Sabotaged . | . . . Parts Stolen . | . . . Parts Stripped . | . . . Power Chain Reactions . | . . . Alert | -11 -10 -9 ------- Run | Yrd Mat Mat Maximum Alert Level . | . . . Low Security (%) 100 | 100 100 100 Level 1 . | . . . Level 2 . | . . . Level 3 . | . . . Level 4 . | . . . Level 5 . | . . . High Security . | . . . Max Security . | . . . Peak Influence 161 | 5 111 161 Initial . | . . . Average 32 | . 32 43 Influence Increases 737 | 15 419 303 Destroy 0b10 Robot/C 500 | . 280 220 Destroy 0b10 Robot/NC 45 | 15 20 10 Destroy Leader 132 | . 72 60 Destroy Structure 15 | . 2 13 Lose Combat Pursuer 45 | . 45 . Influence Decreases 584 | 15 419 150 Time Decay 524 | 15 379 130 Lost Part 60 | . 40 20 Squads Dispatched 4 | . 3 1 Investigation 1 | . 1 . Extermination . | . . . Reinforcement 3 | . 2 1 Assault . | . . . Garrison . | . . . Intercept . | . . . Searches Triggered . | . . . Construction Impeded . | . . . Haulers Reinforced . | . . . Active Scanning Responses . | . . . Cargo Convoy Interrupts . | . . . Stealth | -11 -10 -9 --------- Run | Yrd Mat Mat Distress Signals 2 | . 1 1 Communications Jammed . | . . . Distress Signals . | . . . Times Spotted 38 | . 25 13 Peak Tracking Total 6 | . 6 6 Tactical Retreats 2 | . 2 . Traps | -11 -10 -9 ------- Run | Yrd Mat Mat Traps Triggered 6 | . 5 1 Indirectly . | . . . Trap Hack Attempts . | . . . Triggered . | . . . Disarmed . | . . . Reprogrammed . | . . . Reused . | . . . Traps Extracted . | . . . Installed . | . . . Triggered . | . . . Machines | -11 -10 -9 ---------- Run | Yrd Mat Mat Machines Disabled . | . . . Max in Single Turn . | . . . Machines Repaired . | . . . Machines Dismantled . | . . . Machines Sabotaged . | . . . Overloaded Fab Kills . | . . . Hacking | -11 -10 -9 --------- Run | Yrd Mat Mat Machines Accessed 1 | . 1 . Terminals . | . . . Fabricators . | . . . Repair Stations . | . . . Recycling Units 1 | . 1 . Scanalyzers . | . . . Garrison Access . | . . . Total Hacks 1 | . 1 . Successful 1 | . 1 . Failed . | . . . Catastrophic . | . . . Database Lockouts . | . . . Manual . | . . . Terminals . | . . . Fabricators . | . . . Repair Stations . | . . . Recycling Units 1 | . 1 . Scanalyzers . | . . . Garrison Access . | . . . Terminal Hacks . | . . . Fabricator Hacks . | . . . Repair Station Hacks . | . . . Recycling Unit Hacks 1 | . 1 . Report Inventory 1 | . 1 . Scanalyzer . | . . . Garrison Access Hacks . | . . . Unauthorized Hacks . | . . . Terminals . | . . . Fabricators . | . . . Repair Stations . | . . . Recycling Units . | . . . Scanalyzers . | . . . Garrison Access . | . . . Data Cores Recovered . | . . . Used . | . . . Hacking Detections . | . . . Full Trace Events . | . . . Feedback Events . | . . . Feedback Blocked . | . . . Robot Schematics Acquired . | . . . Robots Built . | . . . Authchips . | . . . Time . | . . . Total Robot Build Rating . | . . . Part Schematics Acquired . | . . . Parts Built . | . . . Authchips . | . . . Time . | . . . Total Part Build Rating . | . . . Parts Repaired . | . . . Time . | . . . Parts Recycled . | . . . Recycled Matter . | . . . Retrieved Matter . | . . . Retrieved Components . | . . . Parts Scanalyzed . | . . . Part Schematics Acquired . | . . . Parts Damaged . | . . . Bothacking | -11 -10 -9 ------------ Run | Yrd Mat Mat Used RIF Installer . | . . . Robots Hacked . | . . . Non-combat . | . . . Combat . | . . . Robot Hacks Applied . | . . . Relay Couplers Released . | . . . Fabnet Peak Effective % . | . . . Robots Rewired . | . . . Allies Hacked . | . . . Hacks Repelled . | . . . Allies | -11 -10 -9 -------- Run | Yrd Mat Mat Total Allies . | . . . Largest Group . | . . . Highest-Rated Group . | . . . Highest-Rated Ally . | . . . Total Orders . | . . . Ally Attacks . | . . . Total Damage . | . . . Kills . | . . . Allies Corrupted . | . . . Allies Melted . | . . . Intel | -11 -10 -9 ------- Run | Yrd Mat Mat Active Infowar (turns) 45 | 19 26 . Sensors 6 | . 6 . Terrain 26 | 7 19 . Seismic 13 | 12 1 . Robot Analysis Total . | . . . Derelict Logs Recovered . | . . . Drone Launches . | . . . Drone Recoveries . | . . . Exploration | -11 -10 -9 ------------- Run | Yrd Mat Mat Turns Passed 2112 | 159 1459 494 Spaces Moved 1182 | 109 848 225 Core 32 | 18 12 2 Treads 548 | 5 320 223 Legs 602 | 86 516 . Wheels . | . . . Hover . | . . . Flight . | . . . Fastest Speed 50 | 50 120 160 Average Speed 140 | 110 136 167 Slowest Speed 250 | 160 200 250 Overloaded Moves . | . . . Propulsion Burnouts . | . . . Robots Hopped . | . . . Potential Cave-ins . | . . . Cave-ins Triggered . | . . . Exploration Rate (%) 41 | 5 96 22 Regions Visited 2 Branch Regions . Pre-discovered Areas . | . . . Known Exits Taken . | . . . Unknown Exits Taken 2 | 1 1 . Scrap Searched . | . . . Spaces Dug . | . . . Terrain Destroyed 11 | . . 11 Melee . | . . . Projectile . | . . . AOE 11 | . . 11 Terrain Rammed . | . . . Walls Destroyed . | . . . Machines Disabled . | . . . Actions | -11 -10 -9 --------- Run | Yrd Mat Mat Total 1466 | 141 1042 283 Wait 75 | . 71 4 Move 1180 | 108 847 225 Hop . | . . . Pick Up 46 | 13 25 8 Fast Attach . | . . . Attach 32 | 11 18 3 Detach 5 | 2 3 . Swap 10 | 1 6 3 Drop 21 | 2 12 7 Fire 96 | 4 60 32 Melee . | . . . Ram . | . . . Kick . | . . . Crush 1 | . . 1 Escape Stasis . | . . . Rewire . | . . . Trap . | . . . Miscellaneous . | . . . Route ------- -11/Scrapyard -10/Materials (discovered 6 exits: [*Mat x3] / [*Min x2] / [*Sub]) -9/Materials History --------- Turn | Location | Event 8 | -11/Scrapyard | Discovered new exit (range 15) 160 | -11/Scrapyard | Entered Materials 161 | -10/Materials | Met a group of wandering Federalists 321 | -10/Materials | Build established: Mutant 353 | -10/Materials | Discovered new exit (range 8) 411 | -10/Materials | Discovered new exit (range 13) 541 | -10/Materials | Core integrity fell below 50% 564 | -10/Materials | Discovered new exit (range 10) 753 | -10/Materials | Discovered new exit (range 14) 913 | -10/Materials | Discovered new exit (range 9) 1026 | -10/Materials | Discovered new exit (range 16) 1619 | -10/Materials | Entered another Materials area 1619 | -9/Materials | Evolved 2 slots: Utility x2 2113 | -9/Materials | Self-destructed Last Messages --------------- 02023_ R-06 Scavenger destroyed. 02026_ K-01 Serf collects debris. 02027_ Dropped Grenade Launcher. 02028_ System corrupted: Beam Cannon failed to cycle. 02030_ K-01 Serf collects debris. 02036_ Acquired Lgt. Armor Plating. 02040_ Acquired 10 matter. 02049_ K-01 Serf collects debris. 02053_ Acquired Grenade Launcher. 02055_ K-01 Serf collects debris. 02056_ System corrupted: Matter fused (-8). 02057_ K-01 Serf collects debris. 02068_ Triggered Explosive Trap. 02068_ An explosion rips through the floor. 02070_ Acquired 8 matter. 02070_ U-05 Engineer lays Concrete. 02072_ The unstable cave ceiling collapses. 02073_ U-05 Engineer lays Concrete. 02090_ S-10 Pest destroyed. 02100_ System corrupted: Matter fused (-9). Map ----- +----------------------------------------------------+ | ??????????????????????????????????????????????? | | ??????????????????????????????????????????????? | | ??????????????????????????????????????????????? | | ??????????????????????????????????????????????? | | ??????????????????????????????????????????????? | | ??????????????????????????????????????????????? | | ????????????????????????????????????#?????????? | | ???????????????????????????????????? ?????????? | | ?????????????????????????##+##?????? ?????????? | | ??????????????????? ?# ??? ?????? ?????????? | | ??????????????????? # ?????# #????????? | | ???????????????????? + """ ?????# #????????? | | ?????????????????????# "T" #?????# ##???????? | | ?????????????????????# ^ #?????# ????????? | | ?????????????????????# #?????# #????####? | | ?????????????????????# ^ ####### ##?? #? | | ??????????????#?##???# # / #?? #? | | ??????????????# ??# """ u +? #? | | ??????????????# ?# """ u # #? | | ??????????????# ?# ^""" #### ## #? | | ??????????????# # """ #?##%## #? | | ??????????????# + #?# [ ##????? | | ??????????????# #?# %% ##????? | | ???????????????####### #?# ###???? | | ????????????????????# [ #?# #? ???? | | ????????????????????# @ % #?# # ????? | | ????????????????????+ = #?## # ????? | | ????????????????????# ##+#??# +?????? | | ????????????????????# # ???# # ????? | | ????????????????????# ### #??# # ???? | | ????????????????????# #?#""" #??# #?##?## | | ????????????????????# #?#"R #??# #????# | | ????????????????????# #?#""" #??# ! ###### | | ????????????????????# #?? ?" #??#!%= | | ????????????????????# #????? #??#=######### | | ????????????????????# #??????????# #???????# | | ????????????????????# #??????????#%#???????## | | ????????????????????# #??????????#=#????????? | | ????????????????????# ???????????#=#????????? | | ????????????????????# ???????????#%######???? | | ????????????????????? ???????????# # #???? | | ???????????????????????????????????# # #???? | | ???????????????????????????????????# # ##### | | ???????????????????????????????????# #* # | | ???????????????????????????????????# #== # " | | ???????????????????????????????????# +/[ =# " | | ???????????????????????????????????### = !# " | | ?????????????????????????????????????#%] # | | ?????????????????????????????????????# # " | | ?????????????????????????????????########## " | +----------------------------------------------------+ Best States ------------- Heat Dissipation 28 Energy Generation 12 Energy Capacity 265 Matter Stores 300 Matter Capacity 300 Sight Range 16 Terrain Scan Range 16 Terrain Scan Density 10 Armor Coverage 150 Evasion (%) 55 Targeting Accuracy 5 Recoil Reduction 2 Item Schematics ----------------- None Robot Schematics ------------------ None Fabricated ------------ Nothing Repaired ---------- Nothing Alien Tech Used ----------------- None Achievements -------------- None Challenges ------------ None Game ------ Seed PortableProjectileChainsword Manual? 0 Play Time 00:27:15 Cumulative 7.6 hours Start 2025.07.14 @ 12:48:19 End 2025.07.14 @ 13:15:47 Sessions 1 Manual Loads 0 Difficulty Rogue Special Mode None Game No. 20 Rogue 20 Adventurer 0 Explorer 0 Win Type - Total 0 Types 0/0/0/0/0/0/0/0/0/0 Lore% 1 Gallery% 9 Achievement% 13 Wizard Run 0 Options --------- Layout 0 ASCII 0 Keyboard 0 Movement Numpad Keybinds 0 Fullscreen 2 Font 24/Smallcaps Map View 76x50 Zoom Use 0% Tactical HUD 1 Map Filters NONE Filters NONE Steam 1 RUN: 90380125-4326-478b-a599-f78e633b33b8